[Event "Kvika Banki League Iceland 2022-23"]
[Site "Reykjavik"]
[Date "2022.10.15"]
[Round "3.7"]
[White "Fridgeirsson, Dagur Andri"]
[Black "Bergthorsson, Jon Thor"]
[Result "1-0"]
[ECO "D13"]
[WhiteElo "1943"]
[BlackElo "2145"]
[Annotator "TA"]
[PlyCount "51"]
[EventDate "2022.10.13"]
[EventType "team-tourn"]
[EventCountry "ISL"]
[SourceTitle "playchess.com"]
[Source "ChessBase"]
[SourceQuality "1"]
[TimeControl "5400+30"]

{[%evp 23,51,17,27,0,0,0,10,2,9,0,46,40,20,32,47,-27,51,0,0,0,0,0,0,0,0,0,145,138,975,966]} 1. d4 {[%emt 0:06:24]} d5 {[%emt 0:00:25]} 2. c4 {[%emt 0:00:10]} c6 {[%emt 0:00:56]} 3. cxd5 {[%emt 0:00:45]} cxd5 {[%emt 0:00:10]} 4. Nf3 {[%emt 0:00:08]} Nf6 {[%emt 0:01:34]} 5. Nc3 {[%emt 0:00:17]} e6 {[%emt 0:02:29]} 6. Bf4 {[%emt 0:01:39]} Nc6 {[%emt 0:10:27]} 7. e3 {[%emt 0:00:35]} a6 {[%emt 0:07:15]} 8. Bd3 {[%emt 0:07:57]} h6 {[%emt 0:05:40]} 9. O-O {[%emt 0:00:56]} Bd6 {[%emt 0:02:16]} 10. Bg3 {[%emt 0:10:14]} Bxg3 {[%emt 0:05:08]} 11. hxg3 {[%emt 0:00:06]} Qd6 {[%emt 0:00:45]} 12. Rc1 {[%emt 0:07:21]} O-O {[%emt 0:00:44]} 13. e4 {[%emt 0:06:37] D13: Slav Defence: Exchange variation without ...Bf5.} dxe4 {[%emt 0:09:08]} 14. Nxe4 {[%emt 0:00:37]} Nxe4 {[%emt 0:00:36]} 15. Bxe4 {[%emt 0:00:07] The position is equal.} Ne7 {[%emt 0:08:37] [#]} 16. Ne5 $146 {[%emt 0:07:36]} ({Predecessor:} 16. Qe2 Rb8 17. Rc2 Bd7 18. Rfc1 Bb5 19. Bd3 Bxd3 20. Qxd3 Rfd8 21. Qe4 Nc6 22. Rc4 {0-1 (54) Noiroux,K (2064)-Peric,S (2268) Bethune 2003}) 16... Nf5 {[%emt 0:05:25]} (16... Rb8 $11 {is more appropriate.}) 17. Bxf5 {[%emt 0:01:47]} exf5 {[%emt 0:00:08]} 18. Nc4 {[%emt 0:01:47]} Qf6 {[%emt 0:01:15]} 19. Re1 {[%emt 0:11:49]} (19. Qd2 $14) 19... Bd7 {[%emt 0:14:52]} (19... Be6 $1 $11) 20. Ne5 {[%emt 0:02:11]} ({White should try} 20. Qd2 $14) 20... Be6 $11 {[%emt 0:11:17]} 21. Rc7 {[%emt 0:00:46]} Bd5 {[%emt 0:03:07]} 22. Qc1 $36 {[%emt 0:04:44][%mdl 2048] [#] Threatens to win with Nd7. White has the initiative.} Rfd8 {[%emt 0:00:48]} 23. b3 {[%emt 0:03:31]} Qd6 {[%emt 0:02:01]} 24. Qc3 {[%emt 0:05:56]} Re8 {[%emt 0:00:50]} (24... Rab8 $11) 25. Rd7 $16 {[%emt 0:01:35] White is more active.} Qxd7 {[%emt 0:01:11][%mdl 8192] [#]} (25... Qe6 $16) 26. Nxd7 {[%emt 0:00:12] Weighted Error Value: White=0.17 (very precise) /Black=0.33} 1-0

[Event "Kvika Banki League Iceland 2022-23"]
[Site "Reykjavik"]
[Date "2022.10.15"]
[Round "3.8"]
[White "Halldorsson, Bragi"]
[Black "Hauksson, Hordur Aron"]
[Result "1/2-1/2"]
[ECO "D66"]
[WhiteElo "2066"]
[BlackElo "1882"]
[Annotator "TA"]
[PlyCount "145"]
[EventDate "2022.10.13"]
[EventType "team-tourn"]
[EventCountry "ISL"]
[SourceTitle "playchess.com"]
[Source "ChessBase"]
[SourceQuality "1"]
[TimeControl "5400+30"]

{[%evp 22,145,50,45,50,45,48,55,61,63,73,58,58,62,62,57,65,77,71,19,24,46,34,39,79,87,66,59,65,62,59,38,63,62,69,69,74,60,53,52,60,25,104,38,43,38,70,25,43,52,72,60,96,8,9,0,0,0,0,0,0,-12,8,20,22,0,0,0,0,-177,-143,-227,-225,-232,-224,-200,-131,-174,-174,-239,-179,-178,0,-209,-170,-160,-94,-94,-94,-94,-94,-94,-8,-94,-94,-94,-94,-94,-8,-94,-94,-94,-94,-94,-94,-94,-94,-94,-94,-94,-94,-94,-94,-94,-94,-94,-94,-94,-8,-8,-8,-8,-8,-8,-8,-8]} 1. d4 {[%emt 0:02:11]} Nf6 {[%emt 0:02:15]} 2. c4 {[%emt 0:00:12]} e6 {[%emt 0:00:07]} 3. Nc3 {[%emt 0:00:07]} d5 {[%emt 0:00:15]} 4. Bg5 {[%emt 0:00:13]} Be7 {[%emt 0:00:12]} 5. e3 {[%emt 0:00:10]} c6 {[%emt 0:00:21]} 6. Nf3 {[%emt 0:00:05]} O-O {[%emt 0:00:15]} 7. Rc1 {[%emt 0:00:11]} Nbd7 {[%emt 0:00:19]} 8. Bd3 {[%emt 0:00:28]} dxc4 {[%emt 0:01:58]} 9. Bxc4 {[%emt 0:00:15]} b5 {[%emt 0:00:10]} 10. Bd3 {[%emt 0:00:17]} a6 {[%emt 0:00:14]} 11. O-O {[%emt 0:00:37]} Bb7 {[%emt 0:00:40]} 12. Ne4 {[%emt 0:01:48] 12.a4 is becoming the main line.} Nxe4 {[%emt 0:17:07] D66: Queen's Gambit Declined: Classical: Main Line (7 Rc1 c6 8 Bd3).} 13. Bxe7 {[%emt 0:00:22]} Qxe7 {[%emt 0:23:18]} 14. Bxe4 {[%emt 0:07:27]} Rac8 {[%emt 0:00:10] White is slightly better.} 15. Nd2 {[%emt 0:06:12] White is more active.} f5 {[%emt 0:09:03]} 16. Bf3 {[%emt 0:00:53]} e5 {[%emt 0:00:24]} 17. Nb3 {[%emt 0:06:43]} e4 {[%emt 0:05:59]} 18. Be2 {[%emt 0:02:04]} c5 {[%emt 0:00:38]} 19. dxc5 {[%emt 0:01:07]} Nxc5 {[%emt 0:00:30] [#]} 20. Nd4 $146 {[%emt 0:00:45]} (20. Nxc5 $16 Rxc5 21. Qb3+ Kh8 22. a4) ({Predecessor:} 20. Nxc5 Rxc5 21. Qb3+ Kh8 22. Qa3 Rfc8 23. Rfd1 h6 24. Rxc5 Rxc5 25. g3 Kh7 26. Kg2 {1-0 (80) Loiseau,Q (2474)-Kastelic,M (2287) Terme Catez 2022}) 20... Kh8 {[%emt 0:03:23]} 21. Qd2 {[%emt 0:00:55]} Qe5 {[%emt 0:11:56]} 22. g3 {[%emt 0:02:13]} Ne6 {[%emt 0:01:47]} 23. Nxe6 {[%emt 0:03:35]} Qxe6 {[%emt 0:00:00]} 24. b3 {[%emt 0:00:37]} Rfd8 {[%emt 0:00:34]} 25. Rxc8 {[%emt 0:01:03]} Qxc8 {[%emt 0:00:09]} 26. Qb2 {[%emt 0:00:18]} Qe6 {[%emt 0:02:23]} 27. Rc1 {[%emt 0:00:46]} Qe7 {[%emt 0:02:26]} 28. Qc3 {[%emt 0:01:23]} h6 {[%emt 0:04:12]} 29. Qc7 {[%emt 0:03:18]} Rd7 {[%emt 0:00:32]} 30. Qb8+ {[%emt 0:01:12]} Kh7 {[%emt 0:00:23]} 31. Qf4 {[%emt 0:00:18]} (31. h4 {looks sharper.} Qd6 32. Qe8 Bc6 33. Bh5) 31... Qf7 {[%emt 0:01:55]} (31... Qf6 $11 {keeps the balance.}) 32. Rc5 {[%emt 0:02:06]} (32. a4 $1 $16) 32... Rd5 $1 $14 {[%emt 0:00:06]} 33. Rc2 {[%emt 0:00:46]} Rd7 {[%emt 0:00:36]} 34. Bf1 {[%emt 0:00:30]} Qd5 {[%emt 0:03:10]} 35. h4 {[%emt 0:00:49]} g6 {[%emt 0:01:11]} 36. Qb8 {[%emt 0:02:40]} Qf7 {[%emt 0:01:04]} 37. a4 {[%emt 0:05:21]} ({White should play} 37. h5 $16) 37... Qxb3 $11 {[%emt 0:02:31]} 38. Rc7 {[%emt 0:04:40]} Qf7 {[%emt 0:01:57]} 39. Rxd7 {[%emt 0:00:52]} Qxd7 {[%emt 0:00:02]} 40. axb5 {[%emt 0:00:15]} axb5 {[%emt 0:00:10][%mdl 4096] Endgame KQB-KQB} 41. h5 {[%emt 0:00:28]} g5 {[%emt 0:02:01]} 42. Qe5 {[%emt 0:00:24]} Bd5 $1 {[%emt 0:01:04]} 43. Qd4 {[%emt 0:06:06]} (43. Bxb5 $5 Qe6 44. Qc7+ Qf7 45. Qd8 $14) 43... Be6 {[%emt 0:01:27] Strongly threatening ...Qxd4.} 44. Qb6 {[%emt 0:01:40]} Bf7 {[%emt 0:00:55]} 45. g4 $2 {[%emt 0:02:56]} (45. Bxb5 $11 {and White stays safe.} Qd1+ 46. Kg2) 45... f4 $19 {[%emt 0:01:07]} (45... fxg4 46. Bxb5 Qe7 47. Qd4 $17) 46. exf4 {[%emt 0:13:56]} (46. Bh3 $17 {was worth a try.}) 46... Qxg4+ {[%emt 0:00:11]} 47. Bg2 {[%emt 0:01:28]} Qd1+ {[%emt 0:01:15]} ({Stronger than} 47... Qxf4 48. Qxb5 Bxh5 49. Qb7+ Bf7 50. Bxe4+ Kg8 51. Bf3 $17) ({Not} 47... Bxh5 48. Qc7+ Kg6 49. Qd6+ Kf5 50. Qe5+ Kg6 51. Qd6+ Kh7 52. Qc7+ Kh8 53. Qe5+ Kh7 54. Qc7+ $11) ({Worse is} 47... Qxh5 48. Bxe4+ Kh8 49. Qf6+ Kg8 50. Qd8+ Kg7 51. Qd4+ Kg8 52. Qd8+ Kg7 53. Qd4+ Kg8 54. Qd8+ $11) 48. Bf1 {[%emt 0:00:53]} Qxh5 {[%emt 0:00:24]} 49. fxg5 {[%emt 0:01:21]} Qxg5+ {[%emt 0:00:06]} 50. Kh2 {[%emt 0:00:50]} (50. Bg2 $142) 50... Qh4+ {[%emt 0:00:06]} 51. Kg1 {[%emt 0:00:42]} Qg5+ {[%emt 0:00:53]} 52. Kh2 $1 {[%emt 0:00:24]} Qh5+ {[%emt 0:00:32]} 53. Kg1 {[%emt 0:01:09]} Qg6+ {[%emt 0:01:33]} (53... Qg4+ $142 54. Kh2 Qh5+ 55. Kg1 Qg6+ 56. Qxg6+ Kxg6 57. Bxb5 Kg5) 54. Qxg6+ $17 {[%emt 0:00:17]} Kxg6 {[%emt 0:00:02]} 55. Bxb5 {[%emt 0:00:15] KB-KB} Kg5 {[%emt 0:00:03]} 56. Kg2 {[%emt 0:02:03] [#]} Kf4 {[%emt 0:00:07]} (56... Bd5 $1 $17 57. Kg3 h5) 57. Be2 {[%emt 0:00:42]} (57. Kh3 $1 $11) 57... Be6 {[%emt 0:00:36]} 58. Bh5 {[%emt 0:02:10]} Bg4 {[%emt 0:00:06]} 59. Be8 {[%emt 0:00:43]} Bf3+ {[%emt 0:00:05]} (59... h5 $17 60. Bc6 Be6) 60. Kh2 {[%emt 0:00:32]} (60. Kh3 $11) 60... h5 {[%emt 0:00:29]} 61. Bc6 {[%emt 0:01:51]} Bg4 {[%emt 0:00:13]} 62. Kg2 {[%emt 0:01:19]} Bf5 {[%emt 0:00:08]} 63. Be8 {[%emt 0:01:37]} h4 {[%emt 0:00:36]} 64. Ba4 {[%emt 0:00:26]} Ke5 {[%emt 0:00:41]} 65. Bd1 {[%emt 0:00:40]} Kd4 {[%emt 0:00:11]} 66. Be2 {[%emt 0:00:28]} Kc3 {[%emt 0:00:32]} 67. Bb5 {[%emt 0:00:20]} Kd2 {[%emt 0:00:30]} 68. Bc6 {[%emt 0:00:15][%cal Oc6e4] [#]} Kd3 $1 {[%emt 0:00:12]} 69. Bb7 {[%emt 0:00:11]} Bg4 {[%emt 0:00:41]} (69... Bd7 $17 70. Ba6+ Kd4) 70. Bxe4+ $11 {[%emt 0:00:36][%mdl 64] Remove Defender. The position is equal.} Kxe4 {[%emt 0:00:09]} 71. f3+ $1 {[%emt 0:00:11]} Bxf3+ {[%emt 0:00:28]} 72. Kh3 {[%emt 0:00:08]} Bg2+ {[%emt 0:00:11]} 73. Kxh4 {[%emt 0:00:12] White happily takes the draw.  Weighted Error Value: White=0.25 (precise) /Black=0.25 (precise)} 1/2-1/2

[Event "Kvika Banki League Iceland 2022-23"]
[Site "Reykjavik"]
[Date "2022.10.15"]
[Round "3.9"]
[White "Oleksiyenko, Mykhaylo"]
[Black "Cheparinov, Ivan"]
[Result "1/2-1/2"]
[ECO "B56"]
[WhiteElo "2592"]
[BlackElo "2689"]
[Annotator "TA"]
[PlyCount "147"]
[EventDate "2022.10.13"]
[EventType "team-tourn"]
[EventCountry "ISL"]
[SourceTitle "playchess.com"]
[Source "ChessBase"]
[SourceQuality "1"]
[TimeControl "5400+30"]

{[%evp 15,147,24,18,18,40,31,28,29,33,20,20,24,25,23,19,29,38,0,0,0,0,0,0,0,5,21,42,31,69,0,0,0,0,3,7,7,6,0,7,0,0,0,0,0,0,0,0,0,0,0,0,0,0,0,0,-9,0,-8,-8,-76,-51,-51,-43,-37,-21,-21,-21,-21,-21,-37,-21,-21,0,-6,0,0,0,0,0,-21,-21,-21,-21,-21,-21,-21,-21,-21,-21,-21,-21,-21,-21,-21,-21,-21,-21,-21,-21,-21,0,-21,-21,-21,-21,-21,-21,-21,-21,-21,-21,-21,-21,-21,-21,-21,-21,-21,-21,-21,-21,-21,-21,-21,-21,-21,-21,-21,-21,-21,-21,-21,-21,-21]} 1. e4 {[%emt 0:00:03]} c5 {[%emt 0:00:04]} 2. Nf3 {[%emt 0:00:08]} Nc6 {[%emt 0:00:05]} 3. d4 {[%emt 0:00:18]} cxd4 {[%emt 0:00:05]} 4. Nxd4 {[%emt 0:00:02]} Nf6 {[%emt 0:00:10]} 5. Nc3 {[%emt 0:00:04]} d6 {[%emt 0:00:10]} 6. f3 {[%emt 0:00:14]} e5 {[%emt 0:00:07]} 7. Nb3 {[%emt 0:00:04]} Be7 {[%emt 0:00:21]} 8. Be3 {[%emt 0:00:08]} Be6 $1 {[%emt 0:00:14][%mdl 4] is now more promising than 8...0-0.} 9. Qe2 {[%emt 0:02:44] B56: Classical Sicilian: Unusual Lines.} O-O {[%emt 0:00:09]} 10. O-O-O {[%emt 0:00:12]} Qc8 {[%emt 0:00:21] 10...Na5 is not played anymore.} 11. a3 {[%emt 0:00:20] White has an edge.} Rb8 {[%emt 0:01:25][%cal Ob7b5]} 12. Kb1 {[%emt 0:00:25]} b5 {[%emt 0:00:37] [#] Hoping for ...b4.} 13. Nd5 {[%emt 0:00:38]} Bd8 {[%emt 0:00:07]} 14. Nxf6+ {[%emt 0:00:56]} Bxf6 {[%emt 0:00:06]} 15. Rxd6 {[%emt 0:00:03]} Qc7 {[%emt 0:00:44] [#]} 16. Qd2 $146 {[%emt 0:02:59]} ({Predecessor:} 16. Rd1 a5 17. Nc5 Nd4 18. Bxd4 exd4 19. Nxe6 fxe6 20. g3 a4 21. e5 Bxe5 22. f4 {½-½ (48) Dastan,B (2565)-Nihal,S (2610) Konya 2019}) 16... Nd4 $1 {[%emt 0:03:27]} 17. Bxd4 {[%emt 0:05:44]} Qxd6 {[%emt 0:00:08]} 18. Bxa7 {[%emt 0:00:09]} Qxd2 {[%emt 0:00:04]} 19. Nxd2 {[%emt 0:00:02]} Rb7 {[%emt 0:01:15]} (19... Ra8 $5 {[%cal Ra8a7]} 20. Be3 Rfb8 $11) 20. Be3 {[%emt 0:06:15]} Be7 {[%emt 0:11:06]} 21. b4 {[%emt 0:08:17]} Rd8 {[%emt 0:12:35]} 22. Bd3 {[%emt 0:08:18]} ({White should play} 22. Kb2 $14) 22... Rbd7 $1 $11 {[%emt 0:03:39]} 23. Kb2 {[%emt 0:08:00]} Rxd3 {[%emt 0:01:26]} 24. cxd3 {[%emt 0:01:03]} Rxd3 {[%emt 0:00:05]} 25. Re1 {[%emt 0:00:19]} h6 {[%emt 0:02:05]} 26. Nb1 {[%emt 0:22:50]} Bh4 {[%emt 0:02:45]} 27. g3 {[%emt 0:02:25]} Bg5 {[%emt 0:19:13]} 28. Bxg5 {[%emt 0:06:19]} hxg5 {[%emt 0:00:08][%mdl 4096] Endgame KRB-KRN} 29. Rf1 {[%emt 0:01:26]} Bc4 {[%emt 0:00:58]} 30. Rf2 {[%emt 0:01:40]} Rb3+ {[%emt 0:03:19]} 31. Kc2 {[%emt 0:06:22]} Kf8 {[%emt 0:02:00]} 32. Nd2 {[%emt 0:06:47]} Rxa3 {[%emt 0:00:36]} 33. Nxc4 {[%emt 0:00:09]} bxc4 {[%emt 0:00:03] KR-KR} 34. Rd2 {[%emt 0:00:10]} Rb3 {[%emt 0:03:25]} 35. Rd8+ {[%emt 0:04:27]} Ke7 {[%emt 0:01:31]} 36. Rb8 {[%emt 0:00:03]} Kd6 {[%emt 0:01:39]} 37. Rb6+ {[%emt 0:02:45]} (37. Rg8 $11) 37... Kc7 $17 {[%emt 0:00:26]} 38. Rb5 {[%emt 0:00:48]} f6 {[%emt 0:00:02]} 39. Rc5+ $1 {[%emt 0:00:32]} Kb6 {[%emt 0:00:03]} 40. Rxc4 {[%emt 0:00:27]} Rxf3 {[%emt 0:00:05]} 41. Rc8 $1 {[%emt 0:00:40]} Kb5 {[%emt 0:09:34]} 42. Kd2 {[%emt 0:00:56]} Kxb4 {[%emt 0:04:23]} 43. Rc7 $1 {[%emt 0:00:12] The position is equal.} g6 {[%emt 0:00:26]} 44. Ke2 {[%emt 0:00:51]} g4 {[%emt 0:02:05]} 45. Rg7 {[%emt 0:02:00]} g5 {[%emt 0:00:02]} 46. h4 $1 {[%emt 0:00:43]} gxh4 {[%emt 0:02:52]} 47. Rxg4 {[%emt 0:00:45]} Rxg3 {[%emt 0:01:38]} 48. Rxh4 {[%emt 0:00:03]} Rc3 {[%emt 0:00:13]} 49. Rh6 {[%emt 0:00:27]} Rc6 {[%emt 0:00:20]} 50. Ke3 {[%emt 0:00:09]} Ra6 {[%emt 0:01:07]} 51. Rh8 {[%emt 0:01:07]} Ra3+ {[%emt 0:00:22]} 52. Ke2 {[%emt 0:00:03]} Kc5 {[%emt 0:00:23]} 53. Rd8 {[%emt 0:00:30]} Ra6 {[%emt 0:00:05]} 54. Ke3 {[%emt 0:00:08]} Rd6 {[%emt 0:00:15]} 55. Rc8+ {[%emt 0:00:04]} Rc6 {[%emt 0:00:18]} 56. Rd8 {[%emt 0:00:03]} Kb6 {[%emt 0:00:10]} 57. Rd7 {[%emt 0:00:11]} Re6 {[%emt 0:00:29]} 58. Rd1 {[%emt 0:00:15]} Kc6 {[%emt 0:00:07]} 59. Rf1 {[%emt 0:00:30]} Kd7 {[%emt 0:00:05]} 60. Ke2 {[%emt 0:00:08]} Ra6 {[%emt 0:00:35]} 61. Ke3 {[%emt 0:00:04]} Ra3+ {[%emt 0:00:07]} 62. Ke2 {[%emt 0:00:04]} Ke6 {[%emt 0:00:03]} 63. Kd2 {[%emt 0:00:05]} Rh3 {[%emt 0:00:07]} 64. Ke2 {[%emt 0:00:06]} Rg3 {[%emt 0:00:08]} 65. Kd2 {[%emt 0:00:07]} Kf7 {[%emt 0:00:04]} 66. Ke2 {[%emt 0:00:09]} Kg6 {[%emt 0:00:05]} 67. Rf2 {[%emt 0:00:19]} Rg1 {[%emt 0:01:28]} 68. Ke3 {[%emt 0:00:25]} Re1+ {[%emt 0:00:06]} 69. Kf3 {[%emt 0:00:24]} Ra1 {[%emt 0:00:15]} 70. Rg2+ {[%emt 0:00:13]} Kf7 {[%emt 0:00:09] [#] Threatens to win with ...Ra3+.} 71. Rb2 {[%emt 0:02:10]} Ra3+ {[%emt 0:00:23]} 72. Ke2 {[%emt 0:00:07]} Kg6 {[%emt 0:00:10]} 73. Rb1 {[%emt 0:00:20]} Ra2+ {[%emt 0:02:02]} 74. Ke3 {[%emt 0:00:05] Weighted Error Value: White=0.06 (flawless) /Black=0.03 (flawless)} 1/2-1/2

[Event "Kvika Banki League Iceland 2022-23"]
[Site "Reykjavik"]
[Date "2022.10.15"]
[Round "3.10"]
[White "Jones, Gawain C B"]
[Black "Kjartansson, Gudmundur"]
[Result "1-0"]
[ECO "B51"]
[WhiteElo "2626"]
[BlackElo "2456"]
[Annotator "TA"]
[PlyCount "103"]
[EventDate "2022.10.13"]
[EventType "team-tourn"]
[EventCountry "ISL"]
[SourceTitle "playchess.com"]
[Source "ChessBase"]
[SourceQuality "1"]
[TimeControl "5400+30"]

{[%evp 9,103,17,15,10,14,0,0,0,0,-6,29,29,38,23,23,30,28,0,0,0,0,-14,19,0,0,-25,0,-9,-11,-34,10,10,16,17,12,14,15,16,50,53,63,61,61,59,53,56,66,60,61,53,57,53,52,54,122,123,130,127,116,99,106,111,118,118,203,106,217,217,217,217,217,217,217,217,217,217,547,496,1039,937,1055,1053,1041,785,1070,1054,1014,1041,1014,1011,349,310,12835,5052,12845,12845]} 1. e4 {[%emt 0:00:13]} c5 {[%emt 0:00:22]} 2. Nf3 {[%emt 0:00:11]} d6 {[%emt 0:00:06]} 3. Bb5+ {[%emt 0:00:05]} Nd7 {[%emt 0:00:13]} 4. Ba4 {[%emt 0:00:07]} Ngf6 {[%emt 0:00:48]} 5. O-O {[%emt 0:00:21]} e6 {[%emt 0:01:14]} 6. d3 {[%emt 0:01:09] B51: Sicilian: Moscow Variation (3 Bb5+) without 3...Bd7.} Be7 {[%emt 0:00:13]} 7. c4 {[%emt 0:00:12]} O-O {[%emt 0:00:42]} 8. Nc3 {[%emt 0:00:07] The position is equal.} a6 {[%emt 0:05:22]} 9. Qe2 {[%emt 0:01:40] [#]} Nb8 $146 {[%emt 0:05:09]} ({Predecessor:} 9... Qc7 10. Nd2 Ne5 11. f4 Nc6 12. Bxc6 Qxc6 13. a4 Bd7 14. Nf3 Qc7 15. e5 Ng4 {½-½ (27) Jones,G (2672)-Keymer,V (2655) Germany 2022}) 10. d4 {[%emt 0:18:12]} cxd4 {[%emt 0:00:24]} 11. Nxd4 {[%emt 0:00:06]} Bd7 {[%emt 0:00:21]} 12. Bxd7 {[%emt 0:00:26]} Qxd7 {[%emt 0:01:15]} 13. a4 {[%emt 0:11:00]} Nc6 {[%emt 0:00:43]} 14. Rd1 {[%emt 0:05:53]} Nxd4 {[%emt 0:06:31]} 15. Rxd4 {[%emt 0:03:13]} Qc7 {[%emt 0:05:11]} 16. Bg5 {[%emt 0:00:57]} h6 {[%emt 0:08:49]} 17. Bh4 {[%emt 0:00:26]} Rfc8 {[%emt 0:01:00]} 18. b3 {[%emt 0:04:30]} Qa5 {[%emt 0:09:51]} 19. Qd2 {[%emt 0:09:51][%cal Oc3d5]} b5 {[%emt 0:12:38] [#]} (19... Qh5 $5 {[%cal Rh5h4]} 20. Bg3 b5 $15) 20. Nd5 $1 {[%emt 0:01:49]} Qxd2 {[%emt 0:00:11]} 21. Nxe7+ {[%emt 0:00:07]} Kf8 {[%emt 0:00:09]} 22. Rxd2 {[%emt 0:00:05]} Kxe7 {[%emt 0:00:18]} 23. f4 {[%emt 0:00:18] Against g5} ({But not} 23. cxb5 g5 24. e5 Ne4 $17) (23. axb5 axb5 24. Bxf6+ Kxf6 25. Rxa8 Rxa8 $11) 23... e5 {[%emt 0:08:58]} 24. cxb5 {[%emt 0:16:24]} axb5 {[%emt 0:04:20]} 25. fxe5 $1 {[%emt 0:01:48] White is more active.} dxe5 {[%emt 0:00:06]} 26. Rd5 $1 {[%emt 0:00:15]} bxa4 {[%emt 0:01:51]} 27. Rxe5+ {[%emt 0:00:24]} Kf8 {[%emt 0:01:01]} 28. bxa4 {[%emt 0:00:20]} Rc4 {[%emt 0:08:21][%csl LRa4,LRe4]} 29. a5 {[%emt 0:00:20] And now a6 would win.} Nxe4 {[%emt 0:02:12]} 30. Be1 {[%emt 0:00:41]} Ra6 {[%emt 0:00:14]} 31. Rb1 {[%emt 0:01:02] White threatens Rb8+ and mate.} g5 {[%emt 0:04:37] White leaves nothing to chance now.} (31... f6 $1 $14 32. Rb8+ Kf7 33. Rb7+ Kg6) 32. Rb4 $16 {[%emt 0:06:26]} Nd6 {[%emt 0:00:11]} 33. Rxc4 $1 {[%emt 0:04:00]} Nxc4 {[%emt 0:00:06][%mdl 4096] Endgame KRB-KRN} 34. Bb4+ {[%emt 0:00:07]} Kg7 {[%emt 0:00:09]} 35. Rc5 {[%emt 0:00:38]} Nd6 {[%emt 0:01:14]} 36. Rd5 {[%emt 0:00:37]} Nc4 {[%emt 0:00:50] [#]} (36... Ne4 $16) 37. Kf2 {[%emt 0:01:22]} (37. Rd4 $1 $18 {[%cal Rd4c4]} Ne5 38. Rd6) 37... Kf6 {[%emt 0:01:21] [#]} (37... f6 $16 {keeps fighting.}) 38. Rd4 $1 $18 {[%emt 0:05:56]} Nxa5 {[%emt 0:06:08]} 39. Bc3 {[%emt 0:00:06] Strongly threatening Rd6+.} Kg6 {[%emt 0:00:21]} 40. Ra4 {[%emt 0:00:08]} Rc6 {[%emt 0:00:27]} 41. Bxa5 {[%emt 0:00:08] KRB-KR} Rc2+ {[%emt 0:00:53]} 42. Kf3 {[%emt 0:01:35]} h5 $2 {[%emt 0:00:35]} (42... f5 {is more resistant.} 43. Be1 f4 44. Ra6+ Kf5) 43. h4 {[%emt 0:02:48]} f6 {[%emt 0:01:56]} (43... gxh4 $142 44. Rxh4 Rc6) 44. Rd4 {[%emt 0:00:29]} Rc5 {[%emt 0:02:35]} 45. Bb4 {[%emt 0:00:52]} Rb5 {[%emt 0:01:25]} 46. Rc4 {[%emt 0:01:02]} Rf5+ {[%emt 0:00:37]} 47. Kg3 {[%emt 0:00:26]} Rd5 {[%emt 0:01:00]} 48. Bc3 {[%emt 0:00:38] Black must now prevent Rc6.} Rd3+ {[%emt 0:00:41]} 49. Kh2 {[%emt 0:00:27] Hoping for Rc6.} Rd6 {[%emt 0:00:27] Prevents Rc6.} 50. Rc5 {[%emt 0:00:16] Threatens to win with hxg5.} Re6 $2 {[%emt 0:00:28]} (50... gxh4 51. Be1 Re6) 51. hxg5 {[%emt 0:00:26]} fxg5 {[%emt 0:00:32]} 52. Bd2 {[%emt 0:00:05] Weighted Error Value: White=0.07 (flawless) /Black=0.22 (precise)} 1-0